Cogmind - Beta 16.1 @@@ ROGUE MODE // 2026.03.11 @ 15:18:54 Player: Minty Result: Self-destructed Performance ------------- Evolutions (5) 2500 Regions Visited (7) 1400 Robots Destroyed (45) 225 Value Destroyed (2481) 2481 Prototype IDs (22) 440 Alien Tech Used (0) 0 Bonus (1327) 1327 TOTAL SCORE: 8373 Bonus ------- High Alert Combat Kills 236 Follower Combat Kills 407 Entered Garrisons 200 Entered DSFs 500 Registered with UFD 300 Met Optimus in HQ 500 Friendly Fire -816 Cogmind --------- Core Integrity 137/1000 Matter 155/300 Energy 144/315 System Corruption 54% Temperature Cool (0) Movement Walking (190) Ox1 Location -5/Factory Parts ------- > --- POWER (2) -------- Neutrino Core > --- PROPULSION (5) --- Enhanced Armored Leg > --- UTILITY (7) ------ Scrap Suit Advanced Signal Interpreter System Shield > --- WEAPON (3) ------- Coil Gun > --- INVENTORY (5) ---- Large Storage Unit Advanced Weight Redist. System Coil Gun DRS Beacon (Ready) Peak State ------------ > --- POWER ------------ Light Fission Core Light Fission Core > --- PROPULSION ------- Arachnoskeleton Cargo Legs > --- UTILITY ---------- Improved Heat Sink Large Storage Unit Enhanced Optical Array Experimental Signal Interpreter Improved Reaction Control System Makeshift Light Armor Plating Layered Light Armor Plating > --- WEAPON ----------- Heavy Machine Gun Heavy Machine Gun Heavy Machine Gun > --- INVENTORY -------- Improved Terrain Scanner Improved Terrain Scan Processor Improved Terrain Scan Processor Hacking Suite Hacking Suite Hacking Suite Hacking Suite Advanced Hacking Suite Advanced Hacking Suite Improved Field Recycling Unit Subdweller Shrapnel Launcher Improved Grenade Launcher Makeshift Axe Shrapnel Trap DRS Beacon [Rating: 97] Favorites ----------- Power Ion Engine Engine Ion Engine Power Core Neutrino Core Propulsion Aluminum Leg Treads Improved Medium Treads Leg Aluminum Leg Wheel Subdweller Monowheel Hover Unit Improved Hover Unit Flight Unit VTOL Module Utility Large Storage Unit Device V3-11A's Pendant Storage Large Storage Unit Processor Experimental Signal Interpreter Hackware Advanced Hacking Suite Protection Makeshift Light Armor Plating Weapon Makeshift Sword Energy Gun Plasma Rifle Ballistic Gun Heavy Machine Gun Launcher Grenade Launcher Impact Weapon Heavy Flail Slashing Weapon Makeshift Sword Build | -11 -10 -10 -9 -6 -6 -6 -5 ------- Run | Yrd Mat Sub Scr Fac DSF Gar Fac Slots Evolved 10 | . . . . 8 . . 2 Power 1 | . . . . 1 . . . Propulsion 3 | . . . . 3 . . . Utility 5 | . . . . 3 . . 2 Weapon 1 | . . . . 1 . . . Parts Attached 78 | . 1 11 2 7 6 24 27 Power 9 | . . 1 . 2 . 2 4 Engine 3 | . . 1 . . . 2 . Core 6 | . . . . 2 . . 4 Reactor . | . . . . . . . . Propulsion 18 | . . 2 1 1 . 9 5 Treads 3 | . . . . . . . 3 Leg 7 | . . . 1 1 . 4 1 Wheel 2 | . . 2 . . . . . Hover 1 | . . . . . . . 1 Flight 5 | . . . . . . 5 . Utility 29 | . 1 3 1 3 2 10 9 Device 6 | . 1 1 . 1 . 1 2 Storage 5 | . . 1 . . . 3 1 Processor 3 | . . . 1 1 . . 1 Hackware 11 | . . . . . 2 4 5 Protection 4 | . . 1 . 1 . 2 . Artifact . | . . . . . . . . Weapon 22 | . . 5 . 1 4 3 9 Energy Gun 1 | . . . . . . 1 . Energy Cannon . | . . . . . . . . Ballistic Gun 13 | . . 2 . 1 3 1 6 Ballistic Cannon . | . . . . . . . . Launcher 4 | . . 1 . . 1 1 1 Special Weapon . | . . . . . . . . Impact Weapon 2 | . . . . . . . 2 Slashing Weapon 2 | . . 2 . . . . . Piercing Weapon . | . . . . . . . . Special Melee Weapon . | . . . . . . . . Unidentified Prototypes 3 | . . 1 . . . . 2 Corrupted Parts 6 | . . . . . . . 6 System Corruption 37 | . . . . . . . 37 Parts Lost 42 | . . 2 . . . 19 21 Power 6 | . . 1 . . . 4 1 Propulsion 12 | . . 1 . . . 3 8 Utility 16 | . . . . . . 7 9 Weapon 8 | . . . . . . 5 3 Highest Loss Streak 8 | . . 1 . . . 8 7 To Critical Strikes . | . . . . . . . . Average Backups 8 | 6 7 7 9 5 11 13 4 Power . | 1 1 . . . . . . Propulsion 1 | 4 4 1 2 1 . . . Utility 4 | . 1 2 2 . 6 12 2 Weapon 2 | 1 . 2 4 3 3 . 1 Tool/Special . | . . . . . . . . Unused Backups 19 | . . 3 5 . 7 . 4 Power . | . . . . . . . . Propulsion 2 | . . . 1 . 1 . . Utility 10 | . . . 1 . 5 . 4 Weapon 7 | . . 3 3 . 1 . . Tool/Special . | . . . . . . . . Average Slot Usage (%) 80 | . 85 92 78 62 69 63 74 Engine 8 | . 14 14 11 5 . 3 . Core 2 | . . . . 4 9 3 7 Treads 1 | . . . . . . . 10 Leg 12 | . 28 20 8 10 10 11 . Wheel 3 | . . 5 5 . . . . Flight 2 | . . . . . . 8 5 Device 4 | . . 8 . 9 8 . . Storage 10 | . 14 14 11 5 5 10 1 Processor 2 | . . . 5 8 10 5 . Hackware 6 | . . . . . 2 2 36 Protection 4 | . . . 11 9 8 5 . Ballistic Gun 6 | . 28 8 . 2 13 8 2 Slashing Weapon 12 | . . 18 23 7 . . . Peak Build Rating 97 | 6 9 22 43 88 97 97 71 Average Rating 37 | 6 6 13 35 81 93 60 54 On Entrance 37 | 6 6 7 22 42 85 94 34 Avg Prop Armor Cover (%) 8 | . . 13 5 8 8 11 8 Naked Turns . | . . . . . . . . Heaviest Build 68 | 12 13 31 34 53 60 68 59 Greatest Support 110 | 20 20 40 55 105 105 110 83 Greatest Overweight (x) 9 | . . 3 1 1 1 9 1 Average Overweight (x) . | . . . . . . . . Largest Inventory Capacity 15 | 8 8 15 15 15 15 15 15 Average Capacity 11 | 8 8 9 15 15 15 15 7 Most Carried 15 | 6 8 14 15 10 15 15 13 Average Carried 10 | 6 7 8 13 7 12 14 5 Final Capacity 15 | 8 8 15 15 15 15 15 5 Final Carried 15 | 6 8 14 11 10 15 12 4 Scrap Suit Usage (%) 1 | . . . . . . . 1 Class Distribution -------------------- 69% | Mutant 13% | Wizard-Mutant 4% | Hacker-Tank 4% | Scavenger-Sprinter Dominant Class ---------------- Mutant | -10/Materials Mutant | -10/Subcaves Mutant | -9/Scraptown Mutant | -6/Factory Tank | -6/DSF Scavenger-Sprinter | -6/Garrison Wizard-Mutant | -5/Factory Resources | -11 -10 -10 -9 -6 -6 -6 -5 ----------- Run | Yrd Mat Sub Scr Fac DSF Gar Fac Matter Collected 2340 | 200 16 301 30 . 340 1215 238 Remotely . | . . . . . . . . Salvage Created 1950 | . . 172 . . 526 629 623 Parts 66 | . . 17 . . 17 19 13 Haulers Intercepted 2 | . . . . . 1 . 1 Recyclers Shooed 2 | . . . . . . . 2 Parts Field Recycled . | . . . . . . . . Retrieved Matter . | . . . . . . . . Parts Self-Destructed 9 | . . 9 . . . . . Prevented . | . . . . . . . . Parts Restored . | . . . . . . . . Kills | -11 -10 -10 -9 -6 -6 -6 -5 ------- Run | Yrd Mat Sub Scr Fac DSF Gar Fac Combat Hostiles Destroyed 35 | . . 3 . . 8 18 6 Melee 1 | . . . . . . . 1 Guns 20 | . . 1 . . 2 15 2 AOE 12 | . . 2 . . 6 3 1 Classes Destroyed 14 | . . 2 . . 5 2 5 Worker 2 | . . . . . . . 2 Builder 1 | . . . . . . . 1 Tunneler 1 | . . . . . . . 1 Hauler 2 | . . . . . 1 . 1 Watcher 2 | . . . . . . . 2 Swarmer 8 | . . . . . 3 5 . Grunt 13 | . . . . . 3 7 3 Brawler 2 | . . . . . . 2 . Duelist 2 | . . . . . . 2 . Sentry 3 | . . . . . 1 2 . Hunter 2 | . . . . . 1 . 1 Programmer 2 | . . . . . . . 2 Artisan 1 | . . 1 . . . . . Subdweller 5 | . . 5 . . . . . Best Kill Streak 6 | . . 1 . . 6 6 4 Combat Bots Only 6 | . . 1 . . 6 6 1 Max Kills in Single Turn 3 | . . 1 . . 3 2 3 Gunslinging . | . . . . . . . . Exploded 3 | . . 1 . . 3 1 1 Melee 1 | . . . . . . . 1 Uniques/NPCs Destroyed . | . . . . . . . . Combat | -11 -10 -10 -9 -6 -6 -6 -5 -------- Run | Yrd Mat Sub Scr Fac DSF Gar Fac Hostile Shots Fired 540 | . . 11 . . 19 293 217 Missed 186 | . . 5 . . 7 104 70 Hits 354 | . . 6 . . 12 189 147 Melee 13 | . . . . . . 13 . Projectile 341 | . . 6 . . 12 176 147 AOE 4 | . . 3 . . . . 1 Critical Strikes 8 | . . . . . 1 4 3 Part Disruptions 5 | . . . . . . . 5 Damage Taken 6436 | . . 418 . . 258 3026 2734 Core 1235 | . . 80 . . . 292 863 Absorbed by Shields 14 | . . . . . . 14 . Redirected to Shielding 11 | . . . . . . 11 . Regen/Repaired (Parts) 334 | . . . . . . . 334 Core Remaining (%) 77 | 100 . . 68 . . 65 . Volleys Fired 114 | . 2 22 . . 15 66 9 Largest 3 | . 2 2 . . 3 3 2 Hottest 135 | . 40 60 . . 90 135 105 Shots Fired 212 | . 4 31 . . 39 128 10 Gun 181 | . 4 17 . . 36 118 6 Cannon . | . . . . . . . . Launcher 31 | . . 14 . . 3 10 4 Special . | . . . . . . . . Kinetic 180 | . 4 17 . . 39 115 5 Thermal 13 | . . . . . . 12 1 Explosive 15 | . . 14 . . . 1 . Electromagnetic 4 | . . . . . . . 4 Robot Hit Streak 9 | . 1 4 . . 7 9 8 Robot Miss Streak 8 | . 1 3 . . 3 8 2 Penetration Max . | . . . . . . . . Secondary Targets 4 | . . . . . . 4 . Max Gunslinging Chain 1 | . . . . . . 1 . Shots Hit Robots 140 | . 2 15 . . 24 75 24 Core Hits 81 | . . 6 . . 15 47 13 Critical Kills . | . . . . . . . . Critical Parts Destroyed 1 | . . . . . 1 . . Critical Strikes 1 | . . . . . 1 . . Destroy 1 | . . . . . 1 . . Melee Attacks 45 | . . 21 . . 1 . 23 Impact 23 | . . . . . . . 23 Slashing 22 | . . 21 . . 1 . . Piercing . | . . . . . . . . Sneak Attacks 11 | . . 8 . . 1 . 2 Combat Hostiles . | . . . . . . . . Follow-up Attacks 1 | . . 1 . . . . . Damage Inflicted 6473 | . 24 810 . . 965 2990 1684 Guns 2326 | . 24 99 . . 466 1615 122 Cannons . | . . . . . . . . Explosions 2584 | . . 92 . . 424 1332 736 Melee 1507 | . . 619 . . 75 . 813 Ramming 56 | . . . . . . 43 13 Kinetic 3797 | . 24 99 . . 890 2662 122 Thermal 514 | . . . . . . 88 426 Explosive 289 | . . 92 . . . 197 . Electromagnetic 310 | . . . . . . . 310 Impact 813 | . . . . . . . 813 Slashing 694 | . . 619 . . 75 . . Piercing . | . . . . . . . . Highest Corruption 54 | . . . . . . 3 54 Average Corruption 5 | . . . . . . 2 8 Corruption Purged . | . . . . . . . . Corruption Blocked . | . . . . . . . . Effects 27 | . . . . . . 12 15 Message Errors 9 | . . . . . . 4 5 Matter Fused 4 | . . . . . . 1 3 Heat Flow Errors 6 | . . . . . . 3 3 Energy Discharges 3 | . . . . . . 2 1 Parts Rejected 1 | . . . . . . 1 . Data Loss (minor) 1 | . . . . . . 1 . Data Loss (major) 1 | . . . . . . . 1 Misdirections 2 | . . . . . . . 2 Overload Shots . | . . . . . . . . Overflow Damage 466 | . . 111 . . . 15 340 Projectiles . | . . . . . . . . Explosions 41 | . . . . . . 6 35 Melee 425 | . . 111 . . . 9 305 Knockbacks 5 | . . . . . . . 5 Impact 3 | . . . . . . . 3 Kinetic . | . . . . . . . . Secondary 2 | . . . . . . . 2 Self-Inflicted Damage 129 | . . 72 . . . 54 3 Shots 6 | . . 5 . . . 1 . Rammed 2 | . . . . . . . 2 Targets Rammed 9 | . . . . . . 7 2 Kicked 7 | . . . . . . 7 . Crushed . | . . . . . . . . Highest Temperature 352 | . . . . . . 352 233 Average Temperature 91 | . . . . . . 92 90 Received Heat Transfer 870 | . . 6 . . 12 642 210 Effects 6 | . . . . . . 5 1 Energy Bleed 2 | . . . . . . 1 1 Interference 4 | . . . . . . 4 . Siege Activations . | . . . . . . . . Martial Activations . | . . . . . . . . Shielding Activations . | . . . . . . . . Robots Disrupted . | . . . . . . . . Combat Hostiles . | . . . . . . . . Robots Corrupted 5 | . . . . . . . 5 Combat Hostiles 2 | . . . . . . . 2 Parts Fried 7 | . . . . . . . 7 Impact Corruptions 17 | . . . . . . 1 16 Robots Melted . | . . . . . . . . Combat Hostiles . | . . . . . . . . Parts Melted 2 | . . . . . . 1 1 Heat Transferred 450 | . . . . . . 200 250 Parts Sabotaged . | . . . . . . . . Parts Stolen . | . . . . . . . . Parts Stripped . | . . . . . . . . Power Chain Reactions . | . . . . . . . . Alert | -11 -10 -10 -9 -6 -6 -6 -5 ------- Run | Yrd Mat Sub Scr Fac DSF Gar Fac Maximum Alert Level 3 | . . . . . 1 3 2 Low Security (%) 27 | 100 100 . . 100 92 4 . Level 1 23 | . . . . . 7 4 56 Level 2 38 | . . . . . . 61 43 Level 3 10 | . . . . . . 30 . Level 4 . | . . . . . . . . Level 5 . | . . . . . . . . High Security . | . . . . . . . . Max Security . | . . . . . . . . Peak Influence 757 | . . . . 12 241 757 462 Initial 396 | . . . . . 3 180 396 Average 353 | . . . . . 56 558 387 Influence Increases 1825 | . . . . 17 345 787 676 Destroy 0b10 Robot/C 820 | . . . . . 200 400 220 Destroy 0b10 Robot/NC 45 | . . . . . 5 . 40 Destroy Leader 138 | . . . . . 30 30 78 Allied During Kill 101 | . . . . . 25 4 72 Successful Hack 17 | . . . . 17 . . . Select Force Hacks 30 | . . . . . . . 30 Disable Machine 180 | . . . . . 30 45 105 Anti-Garrison Action 200 | . . . . . . 200 . Destroy Structure 219 | . . . . . 55 78 86 Partial Spotted 15 | . . . . . . . 15 Lose Combat Pursuer 60 | . . . . . . 30 30 Influence Decreases 1535 | . . . . 12 109 271 1143 Entered New Map 424 | . . . . . 2 61 361 Time Decay 404 | . . . . 12 . . 392 Lost Part 400 | . . . . . . 190 210 Lost Ally 307 | . . . . . 107 20 180 Squads Dispatched 12 | . 1 . . 1 1 . 9 Investigation 6 | . . . . 1 . . 5 Extermination 1 | . . . . . . . 1 Reinforcement 5 | . 1 . . . 1 . 3 Assault . | . . . . . . . . Garrison . | . . . . . . . . Intercept . | . . . . . . . . Searches Triggered . | . . . . . . . . Construction Impeded 1 | . . . . . . . 1 Haulers Reinforced 1 | . . . . . . . 1 Active Scanning Responses . | . . . . . . . . Cargo Convoy Interrupts . | . . . . . . . . Stealth | -11 -10 -10 -9 -6 -6 -6 -5 --------- Run | Yrd Mat Sub Scr Fac DSF Gar Fac Distress Signals 5 | . 2 . . . . . 3 Communications Jammed . | . . . . . . . . Distress Signals . | . . . . . . . . Times Spotted 89 | . 4 13 . . 10 27 35 Peak Tracking Total 11 | . 3 3 . . 3 6 11 Tactical Retreats 3 | . . . . . . 2 1 Traps | -11 -10 -10 -9 -6 -6 -6 -5 ------- Run | Yrd Mat Sub Scr Fac DSF Gar Fac Traps Triggered 6 | . . 1 . . . 5 . Indirectly . | . . . . . . . . Trap Hack Attempts . | . . . . . . . . Triggered . | . . . . . . . . Disarmed . | . . . . . . . . Reprogrammed . | . . . . . . . . Reused . | . . . . . . . . Traps Extracted . | . . . . . . . . Installed . | . . . . . . . . Triggered . | . . . . . . . . Most Traps Carried 1 | . . 1 1 1 1 . . Machines | -11 -10 -10 -9 -6 -6 -6 -5 ---------- Run | Yrd Mat Sub Scr Fac DSF Gar Fac Machines Disabled 16 | . . 1 . . 2 6 7 Max in Single Turn 5 | . . 1 . . . 2 5 Garrison Relay 3 | . . . . . . 3 . Machines Repaired . | . . . . . . . . Machines Dismantled . | . . . . . . . . Machines Sabotaged . | . . . . . . . . Overloaded Fab Kills . | . . . . . . . . Hacking | -11 -10 -10 -9 -6 -6 -6 -5 --------- Run | Yrd Mat Sub Scr Fac DSF Gar Fac Machines Accessed 13 | . . 1 . 3 . 1 8 Terminals 3 | . . . . 1 . 1 1 Fabricators 1 | . . . . 1 . . . Repair Stations 2 | . . . . . . . 2 Recycling Units 3 | . . . . . . . 3 Scanalyzers 3 | . . . . 1 . . 2 Garrison Access . | . . . . . . . . Total Hacks 32 | . . 1 . 6 . 2 23 Successful 21 | . . 1 . 2 . . 18 Failed 11 | . . . . 4 . 2 5 Catastrophic 5 | . . . . 2 . 1 2 Database Lockouts . | . . . . . . . . Manual 10 | . . . . . . 2 8 Terminals 7 | . . . . 1 . 2 4 Fabricators 2 | . . . . 2 . . . Repair Stations 6 | . . . . . . . 6 Recycling Units 4 | . . . . . . . 4 Scanalyzers 12 | . . . . 3 . . 9 Garrison Access . | . . . . . . . . Terminal Hacks 2 | . . 1 . 1 . . . Open DSF 1 | . . . . 1 . . . Proto ID Catalog 1 | . . 1 . . . . . Fabricator Hacks . | . . . . . . . . Repair Station Hacks 6 | . . . . . . . 6 Scan Component 3 | . . . . . . . 3 Repair 3 | . . . . . . . 3 Recycling Unit Hacks 1 | . . . . . . . 1 Report Inventory 1 | . . . . . . . 1 Scanalyzer 8 | . . . . 1 . . 7 Insert Component 3 | . . . . . . . 3 Analyze 3 | . . . . . . . 3 Retrieve Study 2 | . . . . 1 . . 1 Garrison Access Hacks . | . . . . . . . . Unauthorized Hacks 4 | . . . . . . . 4 Terminals . | . . . . . . . . Fabricators . | . . . . . . . . Repair Stations . | . . . . . . . . Recycling Units 3 | . . . . . . . 3 Fedlink 1 | . . . . . . . 1 Scrapoids 2 | . . . . . . . 2 Scanalyzers 1 | . . . . . . . 1 Extract 1 | . . . . . . . 1 Garrison Access . | . . . . . . . . Data Cores Recovered . | . . . . . . . . Used . | . . . . . . . . Hacking Detections 8 | . . . . 2 . 1 5 Full Trace Events 3 | . . . . 1 . 1 1 Feedback Events 1 | . . . . . . . 1 Hackware Fried 1 | . . . . . . . 1 Feedback Blocked . | . . . . . . . . Robot Schematics Acquired . | . . . . . . . . Robots Built . | . . . . . . . . Authchips . | . . . . . . . . Time . | . . . . . . . . Total Robot Build Rating . | . . . . . . . . Part Schematics Acquired 4 | . . . . . . . 4 Parts Built . | . . . . . . . . Authchips . | . . . . . . . . Time . | . . . . . . . . Total Part Build Rating . | . . . . . . . . Part Studies Acquired 2 | . . . . 1 . . 1 Parts Repaired 3 | . . . . . . . 3 Time 132 | . . . . . . . 132 Parts Recycled . | . . . . . . . . Recycled Matter . | . . . . . . . . Retrieved Matter . | . . . . . . . . Retrieved Components . | . . . . . . . . Parts Scanalyzed 3 | . . . . . . . 3 Part Schematics Acquired 3 | . . . . . . . 3 Parts Damaged . | . . . . . . . . Bothacking | -11 -10 -10 -9 -6 -6 -6 -5 ------------ Run | Yrd Mat Sub Scr Fac DSF Gar Fac Used RIF Installer . | . . . . . . . . Robots Hacked . | . . . . . . . . Non-combat . | . . . . . . . . Combat . | . . . . . . . . Robot Hacks Applied . | . . . . . . . . Relay Couplers Released 12 | . . . . . . 12 . Machine Destruction 12 | . . . . . . 12 . Fabnet Peak Effective % . | . . . . . . . . Robots Rewired . | . . . . . . . . Allies Hacked 1 | . . . . . . . 1 Hacks Repelled . | . . . . . . . . Allies | -11 -10 -10 -9 -6 -6 -6 -5 -------- Run | Yrd Mat Sub Scr Fac DSF Gar Fac Total Allies 24 | . . 12 1 . . 1 10 Largest Group 10 | . . 10 9 8 8 1 5 Highest-Rated Group 241 | . . 192 189 152 152 46 241 Highest-Rated Ally 50 | . . 21 37 19 19 46 50 Initial UFD Resources 26 | . . . . 23 23 23 26 Total Orders . | . . . . . . . . Ally Attacks 130 | . . 9 . . 40 7 74 Total Damage 3301 | . . 113 . . 974 404 1810 Kills 10 | . . . . . 2 2 6 Allies Corrupted . | . . . . . . . . Allies Melted . | . . . . . . . . Intel | -11 -10 -10 -9 -6 -6 -6 -5 ------- Run | Yrd Mat Sub Scr Fac DSF Gar Fac Active Infowar (turns) 678 | . . . . 144 261 214 59 Optics 618 | . . . . 144 261 213 . Sensors 59 | . . . . . . . 59 Terrain 1 | . . . . . . 1 . Robot Analysis Total . | . . . . . . . . Derelict Logs Recovered 3 | . . 1 2 . . . . Drone Launches . | . . . . . . . . Drone Recoveries . | . . . . . . . . Exploration | -11 -10 -10 -9 -6 -6 -6 -5 ------------- Run | Yrd Mat Sub Scr Fac DSF Gar Fac Turns Passed 6095 | 2 184 2342 1266 209 261 899 932 Spaces Moved 4190 | 2 104 1581 956 204 162 549 632 Core 92 | . . . . . . . 92 Treads 310 | . . . . . . . 310 Legs 2809 | 2 104 1236 735 204 162 359 7 Wheels 566 | . . 345 221 . . . . Hover . | . . . . . . . . Flight 413 | . . . . . . 190 223 Fastest Speed 23 | 120 120 110 110 90 90 23 23 Average Speed 115 | 120 120 128 125 93 108 88 98 Slowest Speed 755 | 120 120 330 130 180 180 755 240 Overloaded Moves . | . . . . . . . . Propulsion Burnouts . | . . . . . . . . Robots Hopped 2 | . . . . . . . 2 Potential Cave-ins 5 | . . 5 . . . . . Cave-ins Triggered 1 | . . . . . . 1 . Exploration Rate (%) 41 | 2 24 79 54 5 94 54 18 Regions Visited 7 Branch Regions 2 Pre-discovered Areas 2 | . . . 2 . . . . Known Exits Taken 2 | . . . 1 1 . . . Unknown Exits Taken 3 | 1 1 1 . . . . . Scrap Searched 17 | . . 9 8 . . . . Spaces Dug 6 | . . 6 . . . . . Terrain Destroyed 148 | . . 78 . . 25 39 6 Melee 6 | . . 6 . . . . . Projectile . | . . . . . . . . AOE 142 | . . 72 . . 25 39 6 Terrain Rammed . | . . . . . . . . Walls Destroyed . | . . . . . . . . Machines Disabled . | . . . . . . . . Actions | -11 -10 -10 -9 -6 -6 -6 -5 --------- Run | Yrd Mat Sub Scr Fac DSF Gar Fac Total 5212 | 1 159 1848 1023 219 224 844 894 Wait 592 | . 49 197 51 3 4 121 167 Move 4177 | 1 103 1580 955 203 161 546 628 Hop 2 | . . . . . . . 2 Pick Up 44 | . 2 9 6 2 18 2 5 Fast Attach 53 | . 1 4 1 5 3 17 22 Attach 25 | . . 1 1 3 . 8 12 Detach 18 | . 1 2 . 2 . 5 8 Swap 24 | . . 7 1 1 7 5 3 Drop 52 | . 1 8 8 . 15 7 13 Fire 114 | . 2 22 . . 15 66 9 Melee 42 | . . 18 . . 1 . 23 Ram 1 | . . . . . . . 1 Kick 7 | . . . . . . 7 . Crush 1 | . . . . . . . 1 Escape Stasis 60 | . . . . . . 60 . Rewire . | . . . . . . . . Trap . | . . . . . . . . Miscellaneous . | . . . . . . . . Route ------- -11/Scrapyard -10/Materials (discovered 2 exits: [*Mat] / *Sub) -10/Subcaves (discovered 4 exits: [*Mat x2] / [*Scr x2]) -9/Scraptown -6/Factory -6/DSF -6/Garrison (discovered 3 exits: *Fac x3) -5/Factory History --------- Turn | Location | Event 1 | -11/Scrapyard | Discovered new exit (range 1) 3 | -11/Scrapyard | Entered Materials 4 | -10/Materials | Met a group of wandering Federalists 102 | -10/Materials | Discovered new exit (range 15) 154 | -10/Materials | Discovered new exit (range 6) 187 | -10/Materials | Entered Subcaves 188 | -10/Subcaves | Continued accompanying wandering Federalists (4) 188 | -10/Subcaves | Approached by a straggling Scientist 193 | -10/Subcaves | Learned Materials stockpile data 261 | -10/Subcaves | Shifting Twisted Machinery released Scrap Shield 264 | -10/Subcaves | Shifting Twisted Machinery released Shrapnel Trap 308 | -10/Subcaves | Build established: Mutant 313 | -10/Subcaves | Shifting Twisted Machinery released Sub. Machine Gun 426 | -10/Subcaves | Wandering Federalist uncovered a shortcut to Scraptown 564 | -10/Subcaves | Scientist uncovered a shortcut to Scraptown 818 | -10/Subcaves | Shifting Twisted Machinery released Battle Cannon 980 | -10/Subcaves | Shifting Twisted Machinery released Mak. Sword 993 | -10/Subcaves | Shifting Twisted Machinery released Mak. Axe 1079 | -10/Subcaves | Visited triangular shrine 1087 | -10/Subcaves | Found Prototype Device 1087 | -10/Subcaves | Identified V3-11A's Pendant 1092 | -10/Subcaves | Befriended Subdweller 1147 | -10/Subcaves | Befriended Subdweller 1147 | -10/Subcaves | Befriended Subdweller 1154 | -10/Subcaves | Disturbed a concealed Subdweller 1175 | -10/Subcaves | Discovered new exit (range 15) 1279 | -10/Subcaves | Befriended Subdweller 1279 | -10/Subcaves | Befriended Subdweller 1394 | -10/Subcaves | Befriended Subdweller 1399 | -10/Subcaves | Befriended Subdweller 1491 | -10/Subcaves | Discovered new exit (range 7) 1634 | -10/Subcaves | Befriended Subdweller 1634 | -10/Subcaves | Befriended Subdweller 2062 | -10/Subcaves | A Subdweller sparked back to life 2062 | -10/Subcaves | A Subdweller sparked back to life 2062 | -10/Subcaves | A Subdweller sparked back to life 2064 | -10/Subcaves | Befriended Subdweller 2064 | -10/Subcaves | Befriended Subdweller 2064 | -10/Subcaves | Befriended Subdweller 2087 | -10/Subcaves | Found Prototype Leg 2226 | -10/Subcaves | Visited 4L-MR0's lab 2233 | -10/Subcaves | Identified Arachnoskeleton 2238 | -10/Subcaves | Found Cargo Legs 2529 | -10/Subcaves | Entered Scraptown 2529 | -9/Scraptown | Accompanied by 8 allies 2600 | -9/Scraptown | Visited UFD Registry 2600 | -9/Scraptown | Registered with UFD as "Chainboard" 2638 | -9/Scraptown | Visited Awakened 2667 | -9/Scraptown | Scanned Subdweller tech in exchange for log data 2670 | -9/Scraptown | Learned location of Quarantine (-2) 2671 | -9/Scraptown | Learned location of Warlord (-5) 2741 | -9/Scraptown | Visited Bundlers 2785 | -9/Scraptown | Attached Cargo Legs, gained temporary slots: Utility x2 2887 | -9/Scraptown | Delivered V3-11A's Pendant to T0-NE2 in exchange for information 2999 | -9/Scraptown | Visited Scrapoid Pod Storage 3019 | -9/Scraptown | Visited Chapter 10 3041 | -9/Scraptown | Visited Derelict Rescue Squad 3052 | -9/Scraptown | Found DRS Beacon 3097 | -9/Scraptown | Visited Infowarlord's Domain 3189 | -9/Scraptown | Found Exp. Signal Interpreter 3211 | -9/Scraptown | Visited DA-N13 Charitable Foundation 3218 | -9/Scraptown | Found DCF Scrap (26 items) 3249 | -9/Scraptown | Visited Botcube Research 3255 | -9/Scraptown | Found Botcube 3285 | -9/Scraptown | Botcube activated 3301 | -9/Scraptown | Botcube completed mutation into legged form, armed with 2 guns. 3360 | -9/Scraptown | Visited Research Penetration Think Tank 3412 | -9/Scraptown | Visited Curators Association 3483 | -9/Scraptown | Visited The Evicted 3698 | -9/Scraptown | Met Optimus 3698 | -9/Scraptown | Accepted into 0bPrime 3768 | -9/Scraptown | Discovered new exit (range 5) 3775 | -9/Scraptown | Identified exit to Factory 3795 | -9/Scraptown | Entered Factory 3795 | -6/Factory | Accompanied by 8 allies 3795 | -6/Factory | Evolved 8 slots: Power x1, Propulsion x3, Utility x3, Weapon x1 3796 | -6/Factory | Attached Arachnoskeleton, gained temporary slots: Propulsion x3 4001 | -6/Factory | Identified exit to DSF 4004 | -6/Factory | Entered DSF 4004 | -6/DSF | Accompanied by 8 allies 4016 | -6/DSF | Discovered new exit (range 21) 4042 | -6/DSF | Additional patrols routed to DSF 4094 | -6/DSF | Lost 6 allies 4260 | -6/DSF | Identified exit to Garrison 4265 | -6/DSF | Entered Garrison 4265 | -6/Garrison | Accompanied by 1 ally 4289 | -6/Garrison | Triggered checkpoint 4303 | -6/Garrison | Garrison Relay disabled 4329 | -6/Garrison | Triggered checkpoint 4329 | -6/Garrison | Triggered checkpoint 4417 | -6/Garrison | Triggered checkpoint 4483 | -6/Garrison | Crushed by falling debris 4498 | -6/Garrison | Discovered new exit (range 12) 4507 | -6/Garrison | Identified exit to Factory 4508 | -6/Garrison | Attempted to access garrison exit controls, blocked by remote lockdown 4523 | -6/Garrison | Lost 6 parts (1p3u2w) 4725 | -6/Garrison | Triggered checkpoint 4738 | -6/Garrison | Garrison Relay disabled 4847 | -6/Garrison | Discovered exit to Factory (range 8) 4851 | -6/Garrison | Rescued a captive Derelict 4856 | -6/Garrison | Attempted to access garrison exit controls, blocked by remote lockdown 4914 | -6/Garrison | Lost 8 parts (2p2n2u2w) 5024 | -6/Garrison | Garrison Relay disabled 5105 | -6/Garrison | Discovered exit to Factory (range 9) 5164 | -6/Garrison | Entered Factory 5164 | -5/Factory | Evolved 2 slots: Utility x2 5180 | -5/Factory | Spotted B-75 Beast 5189 | -5/Factory | Loaded intel: 8 recycling unit locations 5232 | -5/Factory | Scrapoid reinforcements arrived 5253 | -5/Factory | Allies destroyed B-75 Beast 5270 | -5/Factory | Lost 6 parts (4n2u) 5410 | -5/Factory | Repaired VTOL Module 5456 | -5/Factory | Build established: Wizard-Mutant 5468 | -5/Factory | Repaired Imp. Medium Treads 5557 | -5/Factory | Lost 3 allies 5747 | -5/Factory | Repaired Imp. Medium Treads 5806 | -5/Factory | Adv. Hacking Suite fried by hacking feedback 5986 | -5/Factory | System corruption reached 10% 6002 | -5/Factory | Core integrity fell below 50% 6027 | -5/Factory | Lost 7 parts (1p2n3u1w) 6075 | -5/Factory | Scrapoids reinforcements arrived? 6075 | -5/Factory | Core integrity fell below 20% 6077 | -5/Factory | System corruption reached 30% 6082 | -5/Factory | Found Corrupted Scrap Suit 6096 | -5/Factory | Self-destructed Last Messages --------------- 06081_ Slug penetrates 05F10-D. 06082_ Acquired Corrupted Scrap Suit. 06082_ Integrated Corrupted Scrap Suit (+8). 06083_ Y-64 Sentinel heat spikes uncontrollably. 06083_ P-70 Sage hacks 05F10-D, rebooting. 06084_ P-70 Sage destroyed. 06084_ Acquired Corrupted Coil Gun. 06084_ Integrated Corrupted Coil Gun (+7). 06085_ Y-64 Sentinel heat spikes uncontrollably. 06086_ Slug penetrates P-70 Sage. 06087_ Y-64 Sentinel heat short circuits Imp. Treads. 06088_ P-70 Sage destroyed. 06088_ Y-64 Sentinel suffers critical hit (Burn). 06088_ Penetrated by Slug. 06090_ 05F10-D destroyed. 06090_ Slug penetrates Wall. 06090_ M-13 Machinist repairs Y-64 Sentinel. 06091_ Acquired Corrupted Neutrino Core. 06091_ Integrated Corrupted Neutrino Core (+8). 06091_ Penetrated by Slug. Map ----- +----------------------------------------------------+ | | | | | | | | | ?????????????????????????????????????????????????? | | ?????????????????????????????????????????????????? | | ?????????????????????????????????????????????????? | | ?????????????????????????????????????????????????? | | ?????????????????????????????????????????????????? | | ?????????????????????????????????????????????????? | | ?????????????????????????????????????????????????? | | ??????????????????####+####??????????????????????? | | ????????#######+### #??????????????????????? | | ??????? #???????????############ | | ??????? #???????????# | | ?????? T ############# | | ?????? / | | ?????? | | ??????????#### #### | | ??????????????????### ############### ^ | | ????????????????????# #?????????????# | | ????????????????????# #?????????????# | | ????????????????????# #?????????????# """ """ | | ????????????????????# #?????????????# """ """ | | ????????????????????# ###########???# """ """ | | ????????????????????# #@ = #???# "" "" | | ????????????????????# ; % % = ; #?## " "" | | ????????????????????# ; = ; #??# | | ????????????????????# ; ! ! *; #??# ! | | ????????????????????# ; %! =%; #??# | | ??????????????"""" # ; [ %*; #??# | | ??????????????"""" + ; = ; #??# ##### | | ???????????# #^ ; % ==; #?# #???? | | ???????????########## %*;; * ;;;#### #???? | | ???????????????????# m! ; | " # #???? | | ???????????????????# # ; ; """ # #???? | | ???????????????????+ Y ### ## """" + #???? | | ???????????????????# ??# ##hh"""" # #???? | | ???????????????????# ??# ## # #???? | | ???????????????????###w##??# ## # #??? | | ?????????????????????# ????# ## # #??"" | | ?????????????????????# ???????# # #?""" | | ?????????????????????# ???????# # # """ | | ?????????????????????? ???????#/######## + """ | | ?????????????????????? ????? ######## ##### | | ?????????????????????? ???? #??#* | | ??????????????????????????? ##?# | | ????????????????????????????"" ### | | ????????????????????????????F" | | ???????????????????????????? ### | +----------------------------------------------------+ Best States ------------- Heat Dissipation 51 Energy Generation 33 Energy Capacity 530 Matter Stores 800 Matter Capacity 800 Sight Range 22 Robot Scan Range 15 Terrain Scan Density 10 Armor Coverage 250 Core Shielding 20 Evasion (%) 67 Recoil Reduction 3 Offensive Hacking 76 Defensive Hacking 20 Item Schematics ----------------- VTOL Module | -5/Factory | Scanalyzed Adv. Signal Interpreter | -5/Factory | Scanalyzed Adv. Weight Redist. System | -5/Factory | Scanalyzed Imp. Actuator Array | -5/Factory | Extracted Robot Schematics ------------------ None Fabricated ------------ Nothing Repaired ---------- VTOL Module | 20% | -5/Factory Imp. Medium Treads | 7% | -5/Factory Imp. Medium Treads | 36% | -5/Factory Studied --------- Imp. Grenade Launcher | -6/Factory | Hacked Imp. Proton Missile Launcher | -5/Factory | Hacked Alien Tech Used ----------------- None Achievements -------------- None Challenges ------------ None Game ------ Seed SpectralAblativeMeganuke Manual? 0 Play Time 00:38:16 Cumulative 1263.8 hours Start 2026.03.10 @ 14:19:00 End 2026.03.11 @ 15:18:54 Sessions 3 Manual Loads 0 Difficulty Rogue Special Mode None Game No. 1555 Rogue 1271 Adventurer 124 Explorer 160 Win Type - Total 61 Types 47/0/8/4/1/0/0/1/0/0 Lore% 93 Gallery% 83 Achievement% 68 Wizard Run 0 Options --------- Layout 0 ASCII 0 Keyboard 1 Movement Numpad Keybinds 0 Fullscreen 2 Font 18/X11 Map View 76x50 Zoom Use 0% Tactical HUD 1 Map Filters NONE Filters NONE Steam 1 RUN: 955ed784-53a3-49f8-8635-7f8d371f14ea